bitfinex/quotes_ETHUSD_20250623
["timestamp","ask_amount","ask_price","bid_price","bid_amount"]
[1750688956164,2.471,2281.5,2279.9,1.5237]
[1750688956165,1.5934,2281.8,2280.1,10.91107303]
[1750688956364,10.513,2282.9,2279.9,22.0367]
[1750688956365,1.5934,2282.2,2280.5,10.0]
[1750688956568,1.5934,2282.2,2280.6,1.5237]
[1750688956864,1.5917,2282.8,2281.0,0.55]
[1750688957062,12.76809278,2282.8,2281.1,2.471]
[1750688957253,1.5917,2282.8,2281.4,10.91107303]
[1750688957453,1.5917,2282.8,2281.5,0.55]
[1750688958387,4.0086,2283.2,2281.5,0.55]
[1750688958568,10.0,2283.1,2281.5,0.55]
[1750688958763,1.5366,2283.2,2281.8,0.55]
[1750688958975,2.472,2283.3,2282.1,0.55]
[1750688959177,2.472,2283.3,2282.3,0.55]
[1750688959469,1.6442,2283.6,2282.5,2.1108]
[1750688959671,1.316959,2283.6,2282.7,0.55]
[1750688959976,2.472,2284.1,2282.7,0.55]
[1750688959977,1.5061,2284.5,2283.3,0.55]
[1750688960178,1.5061,2284.5,2283.4,1.5608]
[1750688960376,1.5061,2284.5,2283.5,3.022]
[1750688960576,1.5061,2284.5,2283.6,0.45828]
[1750688960978,12.1051,2284.9,2283.6,0.45828]
[1750688961153,2.472,2284.8,2283.6,0.45828]
[1750688962173,12.1051,2284.9,2283.6,0.45828]
[1750688962497,10.0,2284.8,2283.6,0.45828]
[1750688962657,12.1051,2284.9,2283.7,0.293028]
[1750688963078,2.472,2284.8,2283.7,0.293028]
[1750688963493,14.5771,2284.9,2283.7,0.293028]
[1750688963672,10.0,2284.8,2283.7,0.293028]
[1750688963869,14.5771,2284.9,2283.8,0.55]
[1750688964069,10.518,2284.9,2283.8,0.55]
[1750688964273,10.518,2284.9,2283.7,0.293028]
[1750688964471,10.518,2284.9,2282.1,1.6576]
[1750688964472,10.0,2283.8,2282.1,1.6576]
[1750688964662,12.6394,2284.9,2282.4,12.75773257]
[1750688964663,10.792,2283.7,2282.4,12.75773257]
[1750688964863,1.5084,2284.3,2282.4,12.75773257]
[1750688964864,10.0,2283.9,2282.5,11.6617]
[1750688965199,2.567,2284.7,2283.5,0.55]
[1750688965499,2.567,2284.7,2283.4,1.6617]
[1750688965500,10.0,2284.6,2283.4,1.6617]
[1750688965658,10.0,2284.3,2282.5,4.1539]
[1750688966298,1.5914,2284.2,2282.5,4.1539]
[1750688966593,10.887,2284.1,2282.5,4.1539]
[1750688967093,10.0,2283.5,2282.5,1.5869]
[1750688967260,10.0,2283.3,2282.5,1.5869]
[1750688968099,12.75773257,2283.2,2281.9,1.6065]
[1750688968397,1.5365,2283.0,2281.9,1.6065]
[1750688970539,1.5719,2283.4,2281.9,1.6065]
[1750688970838,1.5719,2283.4,2282.0,2.568]
[1750688970839,2.568,2283.3,2282.0,2.568]
[1750688971526,10.0,2283.2,2282.0,2.568]
[1750688972405,1.5719,2283.4,2282.0,2.568]
[1750688972610,10.0,2283.1,2282.0,2.568]
[1750688972806,10.0,2283.1,2282.1,0.41745]
[1750688973041,2.568,2283.2,2282.1,0.41745]
[1750688973553,2.568,2283.1,2282.1,0.41745]
[1750688973903,12.1688,2283.8,2282.2,1.6467]
[1750688974102,10.97005308,2283.7,2282.4,1.6467]
[1750688974419,10.833,2283.7,2282.4,1.6467]
[1750688975012,20.833,2283.7,2282.4,1.6467]
[1750688975212,10.0,2283.7,2282.4,1.6467]
[1750688975457,10.0,2283.5,2282.4,1.6467]
[1750688975766,10.0,2283.7,2282.4,1.6467]
[1750688975940,10.0,2283.4,2282.4,1.6467]
[1750688976260,10.0,2283.2,2282.4,1.6467]
[1750688977127,2.568,2283.1,2282.4,1.6467]
[1750688977310,10.0,2283.3,2282.4,1.6467]
[1750688977521,12.47931521,2283.7,2282.4,1.6467]
[1750688977723,13.32686506,2283.6,2282.4,1.6467]
[1750688978213,2.50886506,2283.6,2282.4,1.6467]
[1750688978414,10.817,2283.5,2282.4,1.6467]
[1750688978644,10.812,2283.4,2282.4,16.02797726]
[1750688978844,2.568,2283.6,2282.4,1.6467]
[1750688979043,2.54601152,2283.6,2282.4,16.02803078]
[1750688979248,2.568,2283.5,2282.5,4.38113598]
[1750688979455,2.568,2283.5,2282.5,4.38106731]
[1750688979634,2.568,2283.5,2282.4,6.02794318]
[1750688979834,2.568,2283.5,2282.4,1.6467]
[1750688980058,2.568,2283.5,2282.5,4.38102474]
[1750688980587,2.568,2283.5,2282.4,1.6467]
[1750688980762,2.568,2283.5,2282.7,5.89437349]
[1750688980931,10.521,2283.8,2282.9,4.38035983]
[1750688981133,3.5980053,2284.0,2283.0,4.38010632]
[1750688981334,2.568,2284.0,2282.8,5.89407984]
[1750688981650,2.568,2284.0,2283.2,4.37972536]
[1750688981975,2.568,2284.0,2282.9,16.61510072]
[1750688981976,10.0,2284.4,2283.4,6.02473159]
[1750688982190,12.568,2284.4,2283.4,1.6453]
[1750688982342,2.568,2284.4,2283.4,1.6453]
[1750688982533,12.0599,2284.8,2283.4,6.02455703]
[1750688982732,4.3329865,2285.8,2283.2,6.94763711]
[1750688982733,4.3329865,2286.1,2284.2,1.5165]
[1750688982947,10.94845126,2285.4,2284.2,1.5165]
[1750688983279,10.94845126,2285.1,2284.2,1.5165]
[1750688983438,10.0,2285.0,2284.2,1.5165]
[1750688983642,1.6492,2285.4,2284.2,1.5165]
[1750688983839,2.568,2285.3,2284.5,4.37715584]
[1750688984073,2.568,2285.3,2284.4,4.37751707]
[1750688984074,10.0,2285.2,2284.6,4.3771336]
[1750688984368,2.568,2285.5,2284.6,4.3771252]
[1750688984569,2.568,2285.5,2284.5,4.37723646]
[1750688984769,2.568,2285.5,2284.3,0.58940798]
[1750688984978,1.2568,2285.4,2284.3,4.37759644]
[1750688985274,2.568,2285.5,2284.2,1.5165]
[1750688985456,10.0,2285.3,2284.3,4.37769694]
[1750688986132,10.0,2285.3,2284.2,1.5165]
[1750688986449,10.0,2285.0,2284.2,1.5165]
[1750688986633,4.66284513,2284.9,2283.7,1.5162]
[1750688986833,4.66284513,2284.9,2283.7,5.89504154]
[1750688988170,4.66284513,2284.9,2283.8,4.3785363]
[1750688988732,4.66284513,2284.9,2283.9,4.37830469]
[1750688989071,4.66284513,2284.9,2283.8,4.37866513]
[1750688989368,1.46628451,2284.8,2283.8,0.58948651]
[1750688989570,10.0,2284.7,2283.8,0.58948651]
[1750688989734,10.0,2284.7,2283.7,1.5162]
[1750688990562,2.568,2284.6,2283.7,1.5162]
[1750688990773,10.0,2284.5,2283.7,1.5162]
[1750688991163,12.568,2284.5,2283.7,1.5162]
[1750688991544,10.0,2284.5,2283.7,1.5162]
[1750688991742,12.568,2284.5,2283.7,1.5162]
[1750688992551,12.568,2284.5,2283.7,2.10574192]
[1750688992749,12.568,2284.5,2283.7,1.5162]
[1750688992950,25.51399825,2284.5,2283.7,1.5162]
[1750688993181,25.51399825,2284.5,2283.4,1.6185]
[1750688994282,10.94845126,2284.2,2283.4,1.6185]
[1750688994458,19.13945126,2284.2,2283.4,1.6185]
[1750688994659,21.05339639,2284.2,2283.4,1.6185]
[1750688995906,2.476,2284.1,2283.4,1.6185]
[1750688996062,22.51954699,2284.5,2283.4,1.6185]
[1750688996269,10.0,2284.3,2283.4,1.6185]
[1750688996492,11.03316662,2284.3,2283.4,1.6185]
[1750688996816,14.45383798,2284.3,2283.4,1.6185]
[1750688997011,1.03316662,2284.2,2283.4,1.6185]
[1750688997520,10.0,2284.4,2283.5,4.37916024]
[1750688997712,10.95054699,2284.5,2283.6,4.37903995]
[1750688997863,10.95054699,2284.5,2283.6,4.37886574]
[1750688998199,10.95054699,2284.5,2283.5,4.37914919]
[1750688998200,20.522,2284.5,2283.5,4.3791363]
[1750688998369,20.522,2284.5,2283.4,5.9977957]
[1750688998564,20.522,2284.5,2283.4,5.99784439]
[1750688998781,20.522,2284.5,2283.5,4.37919655]
[1750688999302,20.522,2284.5,2283.5,4.37914969]
[1750688999503,20.522,2284.5,2283.6,4.37896301]
[1750688999662,20.522,2284.5,2283.4,1.6185]
[1750688999663,2.476,2284.4,2283.9,4.3784318]
[1750688999866,18.705,2284.5,2283.9,4.3784318]
[1750688999867,10.522,2284.5,2283.9,4.3784318]
[1750689000103,12.998,2284.5,2283.5,4.37924239]
[1750689000346,12.998,2284.5,2283.5,4.37913766]
[1750689000500,10.94845126,2284.1,2283.4,1.6185]
[1750689000700,2.476,2284.0,2283.4,1.6185]
[1750689000925,2.476,2284.0,2282.6,1.5686]
[1750689000926,10.94845126,2283.6,2282.6,1.5686]
[1750689001133,10.94845126,2283.2,2282.6,1.5686]
[1750689001447,1.5183,2284.3,2283.4,4.37928119]
[1750689001639,1.5183,2284.7,2283.9,4.3783565]
[1750689001806,1.5183,2284.7,2283.5,1.5786]
[1750689002004,10.94845126,2284.6,2283.7,4.37869433]
[1750689002230,4.0292,2285.1,2284.3,4.3775741]
[1750689002550,1.5532,2285.1,2284.4,1.5245]
[1750689002847,12.998,2285.5,2284.7,4.37685771]
[1750689003140,12.998,2285.5,2284.4,1.5245]
[1750689003141,23.94645126,2285.5,2284.4,1.5245]
[1750689003351,10.94845126,2285.2,2284.4,1.5245]
[1750689003906,10.522,2285.5,2284.4,5.90194044]
[1750689004124,2.476,2285.3,2284.5,4.37732545]
[1750689004341,10.522,2285.5,2284.4,1.5245]
[1750689004540,2.476,2285.4,2284.9,4.37655169]
[1750689004739,1.5764,2286.0,2285.1,1.6585]
[1750689004941,2.476,2286.1,2285.5,4.37528881]
[1750689005145,2.476,2286.1,2285.1,1.6585]
[1750689005302,2.476,2286.1,2285.6,4.37519204]
[1750689005707,12.0984,2286.3,2285.7,4.37491754]
[1750689005914,7.76,2287.3,2285.8,4.37467043]
[1750689005915,2.476,2286.6,2285.8,4.37467043]
[1750689006146,12.476,2286.6,2285.7,5.91845895]
[1750689006303,12.476,2286.6,2285.4,4.37555067]
[1750689006304,10.0,2286.2,2285.4,4.37555067]
[1750689006507,10.0,2286.2,2285.6,4.37511545]
[1750689006716,10.0,2286.2,2285.7,4.37499577]
[1750689006944,2.476,2286.3,2285.7,4.37491503]
[1750689009739,12.475,2286.0,2285.2,4.37589703]
[1750689010072,0.44849456,2286.6,2285.9,4.37448758]
[1750689010213,4.0206,2286.5,2285.8,1.6382]
[1750689010414,10.0,2286.3,2285.1,1.5827]
[1750689010943,10.94845126,2286.1,2285.1,1.5827]
[1750689011143,10.0,2286.3,2285.1,1.5827]
[1750689011144,1.6514,2286.0,2285.1,1.5827]
[1750689011352,1.6514,2286.0,2285.5,4.37530164]
[1750689011534,1.6514,2286.0,2285.4,4.37547662]
[1750689011751,1.6514,2286.0,2285.4,4.37557356]
[1750689012245,1.6514,2286.0,2285.2,4.37588262]
[1750689012412,1.6514,2286.0,2285.3,4.37579121]
[1750689012612,3.14830513,2286.5,2285.1,1.5827]
[1750689012822,2.475,2286.4,2285.5,4.37528735]
[1750689013012,14.85016008,2286.4,2285.1,1.5827]
[1750689013214,10.0,2286.3,2285.3,4.37577321]
[1750689013449,2.475,2286.2,2285.3,4.37577321]
[1750689013647,2.475,2286.2,2285.4,4.37560066]
[1750689013951,2.475,2286.2,2285.7,4.37502567]
[1750689014115,2.475,2286.2,2285.5,4.37531818]
[1750689014315,2.475,2286.2,2285.6,4.37517149]
[1750689014556,2.475,2286.2,2285.6,4.37509346]
[1750689014850,2.475,2286.2,2285.6,4.37513829]
[1750689015017,2.475,2286.2,2285.7,4.37492376]
[1750689015353,18.2,2286.3,2285.1,1.5827]
[1750689015354,10.94845126,2286.1,2285.1,1.5827]
[1750689015537,11.6318,2286.0,2285.1,6.55469547]
[1750689015740,11.6318,2286.0,2285.1,6.55459277]
[1750689016054,19.8118,2286.0,2285.1,2.17860001]
[1750689016214,10.0,2285.8,2285.1,0.59590001]
[1750689016419,10.0,2285.4,2284.7,4.37686306]
[1750689016753,10.0,2285.4,2284.7,4.37692891]
[1750689017455,10.0,2285.4,2284.8,4.3767362]
[1750689017658,10.0,2285.4,2284.6,4.37702672]
[1750689017952,10.0,2285.4,2284.6,4.37704531]
[1750689018168,10.0,2285.4,2284.6,4.96769984]
[1750689018321,10.0,2285.4,2284.9,4.37652866]
[1750689018515,10.0,2285.4,2284.8,4.376664]
[1750689019118,1.5494,2285.6,2284.7,4.37694226]
[1750689019319,1.5494,2285.6,2285.1,4.37608909]
[1750689019547,1.5494,2285.6,2285.0,4.37624265]
[1750689019853,1.5494,2285.6,2285.0,0.54721174]
[1750689020011,1.5494,2285.6,2284.6,4.37706803]
[1750689020218,1.5494,2285.6,2284.5,1.5295]
[1750689020418,1.5494,2285.6,2285.1,4.37602207]
[1750689020649,11.5494,2285.6,2284.5,5.9067036]
[1750689020852,15.86278513,2285.6,2284.6,4.96772688]
[1750689021052,10.94845126,2285.4,2284.6,0.59067036]
[1750689021261,10.94845126,2285.4,2284.4,4.37751707]
[1750689021418,19.10845126,2285.4,2284.4,4.37751707]
[1750689021852,1.6503,2285.0,2284.0,4.37820802]
[1750689022057,10.94845126,2284.8,2283.8,4.37854956]
[1750689022273,10.0,2284.8,2284.0,4.37815027]
[1750689022426,10.0,2284.8,2284.2,4.37780801]
[1750689022640,2.475,2284.8,2283.9,4.37835819]
[1750689022849,2.475,2284.8,2283.5,8.38236618]
[1750689023073,2.475,2284.8,2283.5,1.5282]
[1750689023074,1.543,2284.7,2283.5,1.5282]
[1750689023227,4.03964513,2284.7,2283.9,4.3784472]
[1750689023433,4.03964513,2284.7,2283.9,4.3784725]
[1750689023645,4.03964513,2284.7,2283.8,4.37855991]
[1750689023874,1.543,2284.7,2283.5,1.5282]
[1750689024075,2.475,2284.9,2284.2,4.37790035]
[1750689024375,14.0749,2285.3,2284.3,4.3777087]
[1750689024672,4.0749,2285.3,2284.8,4.37666112]
[1750689024973,4.0749,2285.3,2284.7,4.37684089]
[1750689025191,4.0749,2285.3,2284.6,4.37705744]
[1750689025493,1.5999,2285.3,2284.9,4.37643626]
[1750689025691,1.5999,2285.3,2284.8,4.37663502]
[1750689025999,1.5999,2285.3,2284.9,4.37646874]
[1750689026317,1.5999,2285.3,2284.7,1.5949]
[1750689026505,1.5662,2285.8,2284.7,1.5949]
[1750689026703,1.5662,2286.1,2285.5,1.5949]
[1750689026997,1.5662,2286.4,2285.5,1.5949]
[1750689027200,1.5662,2286.4,2285.6,4.37521876]
[1750689027359,1.5662,2286.4,2285.6,4.37514411]
[1750689027563,10.94845126,2286.3,2285.4,4.37549159]
[1750689027867,1.5662,2285.8,2285.1,4.37607742]
[1750689028088,1.5662,2285.8,2285.3,4.37577081]
[1750689028260,1.5662,2285.8,2285.1,4.37601148]
[1750689028456,1.5662,2285.8,2285.1,4.37607009]
[1750689028673,1.5662,2285.8,2284.9,1.5949]
[1750689028884,1.5662,2285.8,2285.0,4.37627697]
[1750689029101,1.5662,2285.8,2284.9,1.5949]
[1750689029300,2.461,2285.7,2284.9,4.37644983]
[1750689029662,2.461,2285.7,2284.6,1.5949]
[1750689029863,2.461,2285.7,2285.0,4.37635391]
[1750689030116,2.461,2285.7,2285.1,4.37617417]
[1750689030307,2.461,2285.7,2284.6,5.97200114]
[1750689030308,1.5662,2285.8,2285.0,4.37634856]
[1750689030662,4.0272,2285.8,2285.2,4.37594507]
[1750689030809,1.5662,2285.8,2285.2,4.37594507]
[1750689031007,1.5662,2285.8,2285.5,4.37540601]
[1750689031482,1.5662,2285.8,2284.6,1.5949]
[1750689031640,1.5662,2285.8,2285.4,4.37560143]
[1750689031974,1.5662,2285.8,2285.3,4.37569745]
[1750689032176,1.5662,2285.8,2285.3,4.3757793]
[1750689032326,1.5662,2285.8,2285.3,4.37571537]
[1750689032684,10.0,2285.7,2284.7,4.97411436]
[1750689032976,2.25146513,2285.6,2284.8,4.37666841]
[1750689033184,20.598,2285.7,2284.8,4.37666841]
[1750689033323,20.598,2285.7,2284.9,4.37653532]
[1750689033520,20.598,2285.7,2285.1,4.37607569]
[1750689033521,10.0,2285.7,2285.1,4.37607569]
[1750689034282,10.0,2285.7,2285.3,4.37571156]
[1750689034481,10.0,2285.7,2285.2,4.37585066]
[1750689034779,2.461,2286.2,2285.6,4.37512721]
[1750689034989,10.94845126,2285.8,2284.6,4.37699283]
[1750689035167,11.5845,2285.3,2284.5,4.37721596]
[1750689035364,2.461,2285.2,2284.6,4.37704954]
[1750689035545,2.461,2285.2,2284.2,1.6446]
[1750689035980,2.461,2285.2,2284.5,4.37731106]
[1750689036192,2.461,2285.2,2284.4,4.37740779]
[1750689036350,2.461,2285.2,2284.5,4.37731198]
[1750689036554,2.461,2285.2,2284.6,4.37699227]
[1750689036845,2.461,2285.2,2284.7,4.37691821]
[1750689037050,1.5845,2285.3,2284.7,4.37691557]
[1750689037249,1.524,2285.6,2284.5,4.37732545]
[1750689037460,1.524,2285.6,2284.8,4.37660045]
[1750689037780,1.524,2285.6,2284.9,4.37653298]
[1750689037987,10.516,2285.7,2284.6,0.58965255]
[1750689038189,1.5207,2285.9,2285.1,1.501]
[1750689038466,3.9817,2286.4,2285.4,4.37543593]
[1750689038643,3.9817,2286.4,2285.8,4.37472843]
[1750689038843,10.94845126,2285.9,2284.6,2.875648]
[1750689039043,14.1137,2285.8,2284.9,4.37645261]
[1750689039276,10.0,2285.2,2284.6,1.315048]
[1750689039459,10.0,2285.2,2284.3,1.5606]
[1750689039460,10.0,2285.0,2284.3,1.5606]
[1750689039638,10.0,2285.0,2284.3,0.59384416]
[1750689039973,1.1083,2284.7,2283.6,1.67358574]
[1750689040266,1.1083,2284.7,2283.7,4.37875444]
[1750689040267,12.05675126,2284.7,2283.7,4.37875444]
[1750689040568,12.05675126,2284.7,2283.7,4.37877389]
[1750689040757,12.49820931,2284.7,2283.7,4.37877389]
[1750689040958,12.49820931,2284.7,2283.8,4.3786611]
[1750689041132,1.1083,2284.7,2283.9,4.37834513]
[1750689041332,1.1083,2284.7,2284.2,4.377893]
[1750689041333,2.461,2284.6,2284.2,4.377893]
[1750689041536,2.461,2284.6,2283.6,1.2263]
[1750689042172,1.1083,2284.3,2283.6,4.37894232]
[1750689042357,2.461,2284.2,2283.7,4.37885115]
[1750689042556,11.1083,2283.8,2282.3,5.64794213]
[1750689042870,1.1083,2283.8,2282.9,4.38035402]
[1750689043077,1.1083,2283.8,2282.9,4.38030655]
[1750689043278,11.1083,2283.8,2282.9,4.38026888]
[1750689043479,11.1083,2283.8,2282.8,4.38047474]
[1750689043769,11.1083,2283.8,2282.3,9.4334]
[1750689043770,11.1083,2283.8,2282.9,4.81843441]
[1750689043975,11.1083,2283.8,2282.9,0.43804747]
[1750689044173,11.1083,2283.8,2282.5,4.38104895]
[1750689044174,1.1083,2283.5,2282.5,4.38104895]
[1750689044332,1.1083,2283.5,2282.0,2.535622]
[1750689044333,11.7313,2283.4,2282.0,1.2189]
[1750689044535,11.7313,2283.4,2282.3,4.38137392]
[1750689044795,11.7313,2283.4,2281.8,4.38233337]
[1750689044796,0.55,2282.3,2280.4,4.38507726]
[1750689045135,10.94845126,2281.6,2280.8,4.38428663]
[1750689045253,2.462,2281.5,2281.0,4.3840325]
[1750689045584,2.462,2281.5,2280.9,4.38422205]
[1750689045886,10.0,2281.3,2280.4,4.38508497]
[1750689046074,10.0,2281.1,2280.0,1.2184]
[1750689046284,10.0,2281.1,2280.2,4.38558021]
[1750689046447,3.16674513,2281.2,2280.4,4.38509092]
[1750689046791,10.0,2281.1,2279.9,0.2088657]
[1750689046949,0.5,2281.0,2280.1,4.38566873]
[1750689047149,10.5,2281.0,2279.9,0.2088657]
[1750689047381,10.5,2281.0,2280.1,4.38565083]
[1750689047577,10.5,2281.0,2279.9,4.59488384]
[1750689047790,11.222,2281.0,2280.0,4.38577623]
[1750689047971,10.94845126,2280.5,2279.9,0.2088657]
[1750689048174,13.04329639,2280.5,2279.9,0.2088657]
[1750689048375,12.09484513,2280.5,2279.9,0.2088657]
[1750689048581,22.82584513,2280.5,2279.9,0.2088657]
[1750689049389,10.0,2280.5,2279.9,4.59492632]
[1750689049695,10.0,2280.5,2279.9,0.2088657]
[1750689049877,12.80910343,2280.9,2279.9,0.2088657]
[1750689050210,0.5,2281.0,2280.3,4.38525829]
[1750689050412,0.5,2281.0,2280.1,4.38577255]
[1750689050709,12.80910343,2281.0,2279.9,0.2088657]
[1750689050867,12.80910343,2280.6,2279.9,0.2088657]
[1750689051410,10.0,2280.1,2279.9,0.2088657]
[1750689051570,21.314,2280.0,2279.9,0.2088657]
[1750689051770,10.55,2279.9,2278.1,3.7566]
[1750689051971,10.0,2279.4,2278.2,0.37566]
[1750689052207,3.1864,2279.8,2278.2,0.37566]
[1750689052370,2.555,2279.6,2278.5,4.38875894]
[1750689052569,18.73316081,2279.7,2278.3,4.38923758]
[1750689052985,8.304,2279.7,2279.0,4.3877145]
[1750689053233,12.80910343,2280.1,2278.6,4.3886597]
[1750689053234,0.5,2279.5,2278.6,4.3886597]
[1750689053434,0.5,2279.5,2279.1,4.38768149]
[1750689053587,3.00220196,2279.9,2279.1,4.38768149]
[1750689053786,2.8583325,2279.9,2279.2,4.38749997]
[1750689054014,2.556,2279.8,2279.1,4.38760251]
[1750689054186,12.80910343,2279.2,2277.6,4.39044975]
[1750689054387,12.80910343,2279.2,2277.3,4.39113133]
[1750689054388,2.556,2279.2,2277.9,4.39000834]
[1750689054619,2.556,2279.2,2277.8,1.2339]
[1750689054620,2.556,2279.7,2278.1,10.0]
[1750689056343,14.12829743,2279.5,2278.4,4.38893706]
[1750689056497,14.12829743,2279.5,2278.6,4.38863186]
[1750689056839,1.319194,2279.5,2278.6,4.82738208]
[1750689057046,1.319194,2279.5,2278.7,4.3884588]
[1750689057252,1.319194,2279.5,2278.6,4.38860534]
[1750689057401,1.319194,2279.5,2278.2,4.38943025]
[1750689057901,1.319194,2279.5,2278.8,4.3880955]
[1750689058148,3.2893134,2279.5,2278.5,4.38871937]
[1750689058303,0.5,2279.3,2279.2,4.38750438]
[1750689058806,1.319032,2279.8,2279.7,4.38654208]
[1750689058998,10.0,2280.6,2279.8,4.3861908]
[1750689059200,22.51478743,2280.7,2280.0,4.38584405]
[1750689059430,22.51478743,2280.7,2279.6,6.94372505]
[1750689059642,25.02196617,2280.7,2280.0,4.38578667]
[1750689059805,3.82586274,2280.7,2280.0,4.38588445]
[1750689060002,10.537,2281.3,2279.7,0.69437251]
[1750689060271,12.80910343,2280.5,2279.0,1.2384]
[1750689060472,10.943,2280.4,2278.8,2.557]
[1750689060641,12.80910343,2279.9,2278.4,2.557]
[1750689060842,10.946,2279.8,2278.7,4.38845974]
[1750689061071,10.946,2279.8,2278.3,10.539]
[1750689061370,12.80910343,2279.5,2278.7,4.38830775]
[1750689061572,12.557,2280.4,2279.4,4.38702582]
[1750689061868,12.557,2280.4,2279.4,4.38702665]
[1750689062165,2.557,2280.4,2279.1,4.38769689]
[1750689062370,0.22125296,2281.6,2279.0,3.861]
[1750689062371,0.22125296,2281.6,2279.2,12.80910343]
[1750689062569,0.5,2282.9,2279.0,3.861]
[1750689062570,4.37944486,2283.4,2281.0,4.38396305]
[1750689062770,1.318154,2281.8,2280.9,6.94122515]
[1750689062928,1.318154,2281.8,2280.9,2.557]
[1750689063133,12.80910343,2282.2,2280.8,5.64860347]
[1750689063369,12.80910343,2282.2,2280.8,1.2642]
[1750689063578,12.80910343,2281.4,2279.3,1.2317]
[1750689063883,12.80910343,2281.0,2280.0,4.38596178]
[1750689064039,12.80910343,2281.0,2279.9,4.38612238]
[1750689064236,12.80910343,2281.0,2280.0,4.38585555]
[1750689064434,2.65,2281.2,2279.3,5.61890633]
[1750689064634,1.1105,2281.1,2279.7,2.65]
[1750689064834,15.45910343,2281.0,2279.7,4.38644258]
[1750689065074,15.45910343,2281.0,2279.4,0.56189063]
[1750689065372,10.0,2280.9,2279.5,4.38680839]
[1750689065573,10.0,2280.9,2279.4,0.56189063]
[1750689065870,12.80910343,2280.8,2279.1,4.38769689]
[1750689066170,12.80910343,2280.4,2278.9,1.318542]
[1750689066370,12.80910343,2280.4,2279.1,4.38754883]
[1750689066371,8.461,2280.3,2279.1,4.38754883]
[1750689066673,12.80910343,2280.4,2278.6,3.9364]
[1750689066873,12.80910343,2281.0,2279.8,4.38618696]
[1750689067172,2.649,2280.6,2279.7,4.38644211]
[1750689067374,2.649,2280.6,2279.5,2.649]
[1750689067535,2.649,2280.6,2279.3,1.1796]
[1750689067733,2.649,2280.6,2279.4,2.649]
[1750689067939,2.649,2280.6,2279.7,4.38644606]
[1750689068258,12.80910343,2280.6,2279.5,4.38683295]
[1750689068458,12.80910343,2280.6,2279.5,4.38692415]
[1750689068661,12.80910343,2280.6,2279.6,4.3867317]
[1750689068870,12.80910343,2280.6,2279.0,1.2372]
[1750689069071,12.80910343,2280.6,2279.0,3.8862]
[1750689069274,1.28091034,2280.5,2279.4,4.38693542]
[1750689069575,9.72791034,2280.5,2279.5,4.38680962]
[1750689069778,9.72791034,2280.5,2279.1,0.38862]
[1750689070071,10.0,2280.8,2279.7,4.38645205]
[1750689070273,12.80910343,2280.5,2279.2,4.38739591]
[1750689070479,10.0,2280.8,2279.1,0.38862]
[1750689070480,10.0,2280.8,2279.1,4.77629255]
[1750689070772,12.57845139,2280.9,2279.3,1.1621]
[1750689070961,2.53875548,2280.8,2280.0,4.38583514]
[1750689071162,2.53875548,2280.8,2279.4,0.55494355]
[1750689071379,0.43491051,2281.1,2279.6,4.38673451]
[1750689071553,13.19,2281.5,2280.7,4.38450106]
[1750689071875,13.19,2281.5,2280.3,4.38534479]
[1750689072082,10.0,2281.4,2280.5,4.38498486]
[1750689072377,13.83544349,2281.4,2280.2,4.38545365]
[1750689072577,3.72888441,2281.3,2279.8,2.65]
[1750689072878,12.80910343,2280.6,2279.4,0.55494355]
[1750689073075,11.104,2280.5,2279.2,1.133]
[1750689073388,2.65,2280.7,2280.3,4.38529196]
[1750689073539,10.0,2281.2,2280.0,4.38596491]
[1750689073740,10.0,2281.2,2280.1,4.38577255]
[1750689073741,1.02972825,2281.1,2280.1,4.38577255]
[1750689073971,1.318238,2281.3,2279.9,1.1652]
[1750689074152,2.65,2281.7,2280.0,4.38596491]
[1750689074478,2.65,2281.7,2279.9,1.1652]
[1750689074479,1.03010246,2281.4,2280.4,4.38506544]
[1750689074681,11.103,2281.7,2280.4,4.38506544]
[1750689074682,2.649,2281.8,2280.9,4.38411752]
[1750689074877,1.03258161,2281.7,2280.3,2.649]
[1750689075183,13.84168504,2281.6,2280.3,7.0342649]
[1750689075378,2.41768188,2281.5,2280.3,7.0342649]
[1750689075683,1.03351338,2281.4,2280.7,4.384486]
[1750689075844,2.649,2281.7,2280.4,4.38519557]
[1750689076180,1.0340697,2281.6,2280.4,4.38519557]
[1750689076340,1.0340697,2281.5,2280.4,4.38519557]
[1750689076547,1.03445622,2281.8,2281.3,4.38338283]
[1750689076902,1.318001,2282.0,2280.5,11.0912]
[1750689077049,12.80910343,2282.5,2280.3,12.80910343]
[1750689077050,1.03499165,2282.2,2281.9,4.38231298]
[1750689077247,2.649,2282.5,2281.8,4.38247162]
[1750689077543,2.649,2282.5,2281.8,4.38235814]
[1750689077742,2.9139,2282.5,2281.4,4.38314994]
[1750689077976,13.84292061,2282.4,2280.9,3.7512]
[1750689078152,1.03381718,2282.3,2281.0,4.38404208]
[1750689078354,2.9139,2282.5,2281.5,4.38297944]
[1750689078542,1.03302849,2282.4,2281.1,4.38384989]
[1750689078745,3.94692849,2282.5,2281.7,4.38258334]
[1750689078990,1.03228742,2282.5,2281.4,1.0998]
[1750689079193,3.68144927,2282.9,2281.7,4.38259887]
[1750689079357,1.03244927,2282.8,2281.6,4.38280706]
[1750689079679,1.03244927,2282.7,2281.4,5.48300725]
[1750689079892,1.03244927,2282.8,2282.2,4.38170994]
[1750689080047,0.36814493,2282.7,2281.8,4.38250503]
[1750689080394,2.649,2283.5,2282.0,1.1388]
[1750689080554,12.80910343,2282.9,2281.2,0.43838499]
[1750689080759,12.80910343,2282.5,2281.2,0.43838499]
[1750689080956,2.649,2282.8,2282.0,4.38193037]
[1750689081155,22.80910343,2282.7,2281.2,6.13918384]
[1750689081383,3.57647696,2282.6,2281.2,0.43838499]